bitfinex/quotes_SOLUSD_20241126
["timestamp","ask_amount","ask_price","bid_price","bid_amount"]
[1732645446683,44.24422984,227.52,227.45,20.46734584]
[1732645446883,48.63942984,227.52,227.45,20.46734584]
[1732645447082,48.63942984,227.52,227.42,24.86444584]
[1732645447083,44.24422984,227.5,227.42,24.86444584]
[1732645447265,20.46734584,227.47,227.4,20.46734584]
[1732645447468,23.776884,227.46,227.41,24.86464584]
[1732645447665,23.776884,227.46,227.42,20.46734584]
[1732645447884,23.776884,227.48,227.42,20.46734584]
[1732645448085,23.776884,227.48,227.43,20.46734584]
[1732645448470,20.46734584,227.48,227.41,24.86464584]
[1732645448673,20.46734584,227.48,227.33,6.178]
[1732645448674,23.776884,227.44,227.36,20.46734584]
[1732645448874,20.46734584,227.4,227.34,4.3986]
[1732645449094,23.776884,227.38,227.33,4.3988]
[1732645449470,4.3964,227.46,227.35,20.46734584]
[1732645449689,26.90964584,227.48,227.33,4.3988]
[1732645449690,6.4423,227.48,227.43,20.46734584]
[1732645449900,23.776884,227.49,227.45,20.46734584]
[1732645450273,23.776884,227.49,227.46,20.46734584]
[1732645450474,23.776884,227.49,227.45,20.46734584]
[1732645450692,23.776884,227.49,227.43,20.46734584]
[1732645451001,20.46734584,227.54,227.47,20.46734584]
[1732645451290,20.46734584,227.57,227.5,20.46734584]
[1732645451500,20.46734584,227.55,227.48,20.46734584]
[1732645451685,20.46734584,227.54,227.47,20.46734584]
[1732645451990,5.0,227.56,227.38,4.3979]
[1732645452191,16.6670168,227.56,227.38,4.3979]
[1732645452495,23.776884,227.52,227.38,4.3979]
[1732645452685,23.776884,227.46,227.31,4.3992]
[1732645452890,20.46734584,227.39,227.32,20.46734584]
[1732645453097,20.46734584,227.42,227.35,20.46734584]
[1732645453595,20.46734584,227.39,227.32,20.46734584]
[1732645453793,23.776884,227.41,227.28,4.3998]
[1732645453979,20.46734584,227.37,227.31,20.46734584]
[1732645454295,23.776884,227.37,227.28,4.3998]
[1732645454481,23.776884,227.41,227.28,4.3998]
[1732645454800,23.776884,227.43,227.28,4.3998]
[1732645454980,23.776884,227.41,227.26,20.0]
[1732645455300,23.776884,227.37,227.3,20.46734584]
[1732645455681,44.24422984,227.37,227.3,20.46734584]
[1732645455889,23.776884,227.37,227.3,20.46734584]
[1732645456397,23.776884,227.38,227.31,24.86654584]
[1732645456581,44.24422984,227.38,227.31,4.3992]
[1732645456778,20.46734584,227.37,227.31,4.3992]
[1732645457496,20.46734584,227.42,227.35,20.46734584]
[1732645457698,20.46734584,227.39,227.32,20.46734584]
[1732645458088,20.46734584,227.37,227.31,4.3992]
[1732645458287,20.46734584,227.38,227.31,24.86654584]
[1732645458502,20.46734584,227.37,227.31,4.3992]
[1732645458802,20.46734584,227.38,227.31,24.86654584]
[1732645459185,20.46734584,227.39,227.32,20.46734584]
[1732645459383,23.776884,227.38,227.33,4.3988]
[1732645459887,23.776884,227.38,227.33,24.86614584]
[1732645460199,23.776884,227.39,227.33,24.86614584]
[1732645460385,23.776884,227.39,227.31,4.3991]
[1732645460587,23.776884,227.39,227.23,15.4514]
[1732645460588,20.46734584,227.32,227.23,11.0016]
[1732645460795,20.46734584,227.37,227.19,11.0037]
[1732645460796,23.776884,227.31,227.19,11.0037]
[1732645460986,23.776884,227.33,227.19,11.0037]
[1732645461479,28.175884,227.33,227.19,11.0037]
[1732645461683,28.175884,227.33,227.17,4.4019]
[1732645461904,20.46734584,227.21,227.17,4.4019]
[1732645462096,20.46734584,227.18,227.12,4.4028]
[1732645462396,20.46734584,227.13,227.05,20.46734584]
[1732645462603,6.3651,227.21,227.05,20.46734584]
[1732645462604,20.46734584,227.12,227.05,20.46734584]
[1732645462904,20.46734584,227.14,227.07,20.46734584]
[1732645463110,20.46734584,227.16,227.09,20.46734584]
[1732645463399,20.46734584,227.1,227.0,20.46734584]
[1732645463601,23.776884,227.09,227.01,4.4049]
[1732645463995,20.46734584,227.1,227.03,20.46734584]
[1732645464198,20.46734584,227.09,227.01,4.4049]
[1732645464505,20.46734584,227.09,227.02,20.46734584]
[1732645464680,44.24422984,227.1,227.03,20.46734584]
[1732645464879,20.46734584,227.08,227.01,24.87224584]
[1732645465187,20.46734584,227.07,227.01,4.4049]
[1732645465504,20.46734584,227.04,226.97,20.46734584]
[1732645465688,20.46734584,227.05,226.97,20.46734584]
[1732645466084,20.46734584,227.05,226.95,4.4062]
[1732645466085,20.46734584,227.05,226.98,20.46734584]
[1732645466405,20.46734584,227.07,227.0,20.46734584]
[1732645466602,16.0067,227.14,226.98,20.46734584]
[1732645466603,20.46734584,227.05,226.98,20.46734584]
[1732645467003,20.46734584,227.07,227.0,20.46734584]
[1732645467301,20.46734584,227.08,226.98,4.4056]
[1732645467481,23.776884,227.07,226.98,4.4056]
[1732645467678,23.776884,227.07,226.93,20.0]
[1732645468308,23.776884,227.07,226.92,35.4238]
[1732645468808,20.46734584,227.06,226.99,20.46734584]
[1732645468989,23.776884,227.05,226.99,20.46734584]
[1732645469790,23.776884,227.05,226.98,20.46734584]
[1732645469791,44.24422984,227.05,226.98,20.46734584]
[1732645470206,23.776884,227.05,226.99,20.46734584]
[1732645471014,20.46734584,227.07,227.01,20.46734584]
[1732645471199,20.46734584,227.07,227.0,20.46734584]
[1732645471401,20.46734584,227.05,226.98,20.46734584]
[1732645471586,20.46734584,227.05,226.98,24.87294584]
[1732645471787,20.46734584,227.07,227.0,20.46734584]
[1732645471991,20.46734584,227.08,227.01,20.46734584]
[1732645472302,20.46734584,227.07,227.0,20.46734584]
[1732645472499,20.46734584,227.05,226.98,24.87294584]
[1732645472695,20.46734584,227.07,227.0,24.87254584]
[1732645473716,4.4027,227.13,227.0,4.4052]
[1732645473717,20.46734584,227.05,227.0,4.4052]
[1732645473921,20.46734584,227.06,227.0,4.4052]
[1732645474789,20.46734584,227.08,227.01,20.46734584]
[1732645474999,4.4027,227.13,226.99,4.4054]
[1732645475000,20.46734584,227.1,227.03,20.46734584]
[1732645475221,20.46734584,227.1,227.04,20.46734584]
[1732645475400,20.46734584,227.11,227.04,20.46734584]
[1732645475606,20.46734584,227.05,226.99,4.4054]
[1732645475802,11.0697168,227.13,226.97,4.4058]
[1732645476120,20.46734584,227.04,226.97,24.87314584]
[1732645476796,20.46734584,227.05,226.98,20.46734584]
[1732645477202,20.46734584,227.05,226.99,4.4054]
[1732645477718,20.46734584,227.04,226.99,4.4054]
[1732645478097,20.46734584,227.03,226.99,4.4054]
[1732645478296,20.46734584,227.0,226.97,4.4056]
[1732645478517,20.46734584,227.01,226.97,4.4056]
[1732645478900,20.46734584,227.02,226.97,4.4056]
[1732645479413,20.46734584,227.01,226.94,20.46734584]
[1732645480019,20.46734584,226.97,226.92,4.4068]
[1732645480220,20.46734584,226.96,226.92,4.4068]
[1732645480412,20.46734584,226.95,226.91,4.9319816]
[1732645480600,20.46734584,226.95,226.91,0.5249816]
[1732645481002,20.46734584,226.94,226.91,0.5249816]
[1732645481403,36.97694584,227.04,226.91,0.5249816]
[1732645481404,20.46734584,226.95,226.91,0.5249816]
[1732645481718,20.46734584,226.94,226.91,4.9319816]
[1732645482090,20.46734584,226.95,226.91,4.9319816]
[1732645482514,20.46734584,226.97,226.91,4.9319816]
[1732645482704,20.46734584,226.99,226.92,20.46734584]
[1732645482906,20.46734584,226.99,226.91,4.9319816]
[1732645483191,20.46734584,227.0,226.93,20.46734584]
[1732645483401,20.46734584,226.99,226.92,20.46734584]
[1732645483803,16.5096,227.04,226.98,20.46734584]
[1732645483997,20.46734584,227.06,226.99,20.46734584]
[1732645484215,6.6174,227.08,227.02,20.46734584]
[1732645484408,20.46734584,227.09,226.93,4.4066]
[1732645484717,20.46734584,227.09,227.02,20.46734584]
[1732645485503,20.46734584,227.07,227.0,20.46734584]
[1732645486003,20.46734584,227.06,226.99,20.46734584]
[1732645486391,20.46734584,227.09,227.02,20.46734584]
[1732645487199,36.97694584,227.1,227.03,20.46734584]
[1732645487402,20.46734584,227.1,227.03,20.46734584]
[1732645487611,20.46734584,227.13,227.06,20.46734584]
[1732645488031,20.46734584,227.16,227.09,20.46734584]
[1732645488496,20.46734584,227.15,227.08,20.46734584]
[1732645489020,20.46734584,227.15,227.09,4.4035]
[1732645489521,20.46734584,227.16,227.09,24.87084584]
[1732645489830,20.46734584,227.14,227.09,4.4035]
[1732645490001,20.46734584,227.11,227.05,4.4043]
[1732645490397,20.46734584,227.08,227.02,4.4048]
[1732645490709,20.46734584,227.07,227.02,4.4048]
[1732645490907,20.46734584,227.08,227.02,4.4048]
[1732645491911,20.46734584,227.08,227.01,20.46734584]
[1732645492226,20.46734584,227.07,227.0,24.87254584]
[1732645492633,20.46734584,227.1,227.03,20.46734584]
[1732645492921,6.6174,227.2,227.0,15.4184]
[1732645492922,20.46734584,227.12,227.05,20.46734584]
[1732645493120,20.46734584,227.14,227.07,20.46734584]
[1732645493428,20.46734584,227.17,227.1,20.46734584]
[1732645495109,20.46734584,227.12,227.05,35.88234584]
[1732645496012,20.46734584,227.12,227.05,24.87164584]
[1732645496823,20.46734584,227.17,227.1,20.46734584]
[1732645497334,20.46734584,227.16,227.1,20.46734584]
[1732645497840,20.46734584,227.16,227.11,4.4031]
[1732645498027,20.46734584,227.15,227.11,4.4031]
[1732645498401,20.46734584,227.12,227.05,31.47804584]
[1732645498606,20.46734584,227.11,227.06,4.4041]
[1732645499432,20.46734584,227.12,227.06,4.4041]
[1732645499617,20.46734584,227.13,227.06,24.87144584]
[1732645499810,20.46734584,227.12,227.05,20.46734584]
[1732645500209,20.46734584,227.09,227.02,20.46734584]
[1732645500430,20.46734584,227.15,227.0,35.88574584]
[1732645500431,20.46734584,227.07,227.0,35.88574584]
[1732645500807,20.46734584,227.11,227.05,20.46734584]
[1732645501129,23.776884,227.17,227.05,20.46734584]
[1732645501334,20.46734584,227.14,227.07,20.46734584]
[1732645501510,20.46734584,227.1,227.03,20.46734584]
[1732645501826,23.776884,227.13,226.96,17.1816]
[1732645502025,23.776884,227.11,226.97,4.4058]
[1732645502217,23.776884,227.11,226.97,15.4204]
[1732645502613,23.776884,227.11,226.97,4.4058]
[1732645502614,20.46734584,226.99,226.97,4.4058]
[1732645503005,21.4694,227.1,226.97,4.4058]
[1732645503006,20.46734584,227.02,226.97,4.4058]
[1732645503209,20.46734584,226.99,226.92,20.46734584]
[1732645503433,5.0,227.09,226.91,0.5249816]
[1732645503434,20.46734584,226.98,226.93,4.4066]
[1732645504129,20.46734584,227.01,226.93,20.46734584]
[1732645504310,20.46734584,227.01,226.94,20.46734584]
[1732645504510,20.46734584,227.03,226.96,20.46734584]
[1732645505114,20.46734584,226.99,226.92,35.89114584]
[1732645505306,20.46734584,226.97,226.92,4.4068]
[1732645505629,20.46734584,226.96,226.92,4.4068]
[1732645505809,20.46734584,226.95,226.92,4.4068]
[1732645506014,20.46734584,226.95,226.91,0.5249816]
[1732645506323,20.46734584,226.96,226.91,0.5249816]
[1732645506936,20.46734584,226.95,226.91,0.5249816]
[1732645507732,20.46734584,226.96,226.91,4.9319816]
[1732645508607,4.4056,226.99,226.92,20.46734584]
[1732645508608,20.46734584,226.99,226.92,20.46734584]
[1732645508811,20.46734584,227.03,226.97,20.46734584]
[1732645509234,20.46734584,227.05,226.98,20.46734584]
[1732645509629,4.4041,227.07,226.97,20.46734584]
[1732645509630,20.46734584,227.04,226.97,20.46734584]
[1732645510524,20.46734584,227.05,226.98,20.46734584]
[1732645510837,20.46734584,227.05,226.99,4.4054]
[1732645511137,20.46734584,227.11,227.04,20.46734584]
[1732645511441,20.46734584,227.13,227.06,20.46734584]
[1732645511826,20.46734584,227.1,227.03,20.46734584]
[1732645512344,20.46734584,227.14,227.07,20.46734584]
[1732645512513,6.2933,227.19,227.1,20.46734584]
[1732645512514,20.46734584,227.17,227.1,20.46734584]
[1732645512715,20.46734584,227.16,227.09,20.46734584]
[1732645512937,16.4694,227.22,227.13,20.46734584]
[1732645513126,16.4694,227.22,227.14,20.46734584]
[1732645513325,16.4694,227.22,227.07,20.0]
[1732645513527,20.8706,227.22,227.07,20.0]
[1732645513928,20.8706,227.22,227.04,15.4157]
[1732645514136,20.46734584,227.1,227.04,4.4045]
[1732645514312,20.46734584,227.17,227.09,20.46734584]
[1732645514618,20.46734584,227.18,227.11,20.46734584]
[1732645514819,28.178084,227.21,227.04,24.87184584]
[1732645515138,28.178084,227.21,227.07,20.0]
[1732645515639,28.178084,227.21,227.08,4.4037]
[1732645516146,20.46734584,227.12,227.08,4.4037]
[1732645516448,20.46734584,227.17,227.1,20.46734584]
[1732645516625,20.46734584,227.19,227.13,20.46734584]
[1732645516815,4.4012,227.21,227.07,20.0]
[1732645517016,4.4012,227.21,227.07,24.4039]
[1732645517420,4.4012,227.21,227.02,20.0]
[1732645517946,20.46734584,227.14,227.07,20.46734584]
[1732645518121,23.776884,227.2,227.08,20.46734584]
[1732645518122,20.46734584,227.15,227.08,20.46734584]
[1732645518319,20.46734584,227.14,227.07,20.46734584]
[1732645518643,20.46734584,227.13,227.06,20.46734584]
[1732645518815,20.46734584,227.11,227.04,20.46734584]
[1732645519018,20.46734584,227.09,227.02,20.46734584]
[1732645519239,20.46734584,227.06,226.99,35.88644584]
[1732645519548,20.46734584,227.06,226.99,24.87274584]
[1732645519743,20.46734584,227.07,227.0,20.46734584]
[1732645519949,4.4012,227.21,227.06,20.46734584]
[1732645520244,20.46734584,227.13,227.05,20.46734584]
[1732645520548,20.46734584,227.12,227.05,20.46734584]
[1732645521228,20.46734584,227.12,227.06,4.4041]
[1732645521432,20.46734584,227.09,227.02,20.46734584]
[1732645521639,20.46734584,227.07,227.0,24.87254584]
[1732645522030,20.46734584,227.1,227.03,20.46734584]
[1732645522232,20.46734584,227.11,227.04,20.46734584]
[1732645522951,20.46734584,227.12,227.0,15.4184]
[1732645523255,20.46734584,227.14,227.09,4.4035]
[1732645523419,20.46734584,227.13,227.07,4.4039]
[1732645523952,20.46734584,227.14,227.07,24.87124584]
[1732645524254,20.46734584,227.13,227.07,4.4039]
[1732645524542,21.4694,227.22,227.07,24.87124584]
[1732645524543,20.46734584,227.15,227.07,24.87124584]
[1732645524850,23.776884,227.14,227.08,20.46734584]
[1732645525219,23.776884,227.14,227.04,4.4045]
[1732645525220,20.46734584,227.1,227.04,4.4045]
[1732645525727,20.46734584,227.11,227.04,24.87184584]
[1732645526331,20.46734584,227.13,227.06,24.87144584]
[1732645526633,20.46734584,227.1,227.04,4.4045]
[1732645526850,44.24422984,227.11,227.04,24.87184584]
[1732645527647,23.776884,227.11,227.05,20.46734584]
[1732645527857,20.46734584,227.14,227.07,20.46734584]
[1732645528149,44.87001786,227.26,227.13,20.46734584]
[1732645528150,20.46734584,227.21,227.13,20.46734584]
[1732645528332,26.1759,227.28,227.18,20.46734584]
[1732645528533,3.18245427,227.24,227.07,20.0]
[1732645528845,16.40589802,227.25,227.07,20.0]
[1732645529038,20.46734584,227.23,227.16,20.46734584]
[1732645529436,20.46734584,227.23,227.17,4.4019]
[1732645529841,44.24422984,227.24,227.17,4.4019]
[1732645530051,44.24422984,227.24,227.17,24.86924584]
[1732645530256,15.1762,227.28,227.17,24.86924584]
[1732645530257,20.46734584,227.25,227.17,24.86924584]
[1732645530426,20.46734584,227.18,227.08,16.0692]
[1732645530625,4.4,227.27,227.06,4.4039]
[1732645530626,5.0,227.22,227.06,4.4039]
[1732645530891,5.0,227.23,227.06,4.4039]
[1732645531152,20.0,227.22,227.06,4.4039]
[1732645531656,23.776884,227.2,227.03,15.4162]
[1732645531850,20.46734584,227.13,227.06,20.46734584]
[1732645532052,20.46734584,227.14,227.07,20.46734584]
[1732645532350,20.46734584,227.13,227.06,20.46734584]
[1732645532553,20.46734584,227.13,227.04,15.4157]
[1732645532759,20.46734584,227.07,227.04,4.4045]
[1732645533050,20.46734584,227.09,227.04,4.4045]
[1732645533259,20.46734584,227.1,227.04,4.4045]
[1732645533952,20.46734584,227.09,227.04,3.9045]
[1732645534468,20.46734584,227.11,227.04,3.9045]
[1732645534652,20.46734584,227.06,227.01,4.405]
[1732645534845,20.46734584,227.04,226.99,4.4053]
[1732645535159,20.46734584,227.1,227.03,20.46734584]
[1732645535536,20.46734584,227.1,227.02,20.46734584]
[1732645536136,23.776884,227.11,227.04,20.46734584]
[1732645536452,6.3875,227.17,227.09,20.46734584]
[1732645536453,20.46734584,227.16,227.09,20.46734584]
[1732645536660,4.4016,227.19,226.99,0.12549]
[1732645536956,3.18033758,227.18,226.99,20.0]
[1732645537362,15.4056,227.19,226.98,20.0]
[1732645537559,20.4056,227.19,226.98,20.0]
[1732645537759,20.4056,227.19,227.03,20.46734584]
[1732645537760,20.46734584,227.1,227.03,20.46734584]
[1732645538341,20.46734584,227.09,227.04,4.4045]
[1732645538548,20.46734584,227.1,227.04,4.4045]
[1732645538840,20.46734584,227.11,227.04,24.87184584]
[1732645539260,20.46734584,227.12,227.05,20.46734584]
[1732645539463,20.46734584,227.12,227.05,24.87144584]
[1732645539759,20.46734584,227.13,227.06,20.46734584]
[1732645539964,20.46734584,227.07,226.99,4.4054]
[1732645540140,22.4434,227.13,227.01,20.46734584]
[1732645540141,20.46734584,227.08,227.01,20.46734584]
[1732645540341,20.46734584,227.09,227.02,20.46734584]
[1732645540539,20.46734584,227.1,227.03,20.46734584]
[1732645540947,20.46734584,227.11,227.04,20.46734584]
[1732645541257,20.46734584,227.14,227.07,20.46734584]
[1732645541462,7.71446395,227.15,227.09,20.46734584]
[1732645541662,7.71446395,227.15,227.09,4.4033]
[1732645541966,20.46734584,227.1,226.97,4.4058]
[1732645542153,20.46734584,227.0,226.95,4.406]
[1732645542461,20.46734584,226.99,226.93,4.4064]
[1732645542664,20.46734584,226.97,226.93,4.4064]
[1732645542962,20.46734584,226.97,226.91,0.5249816]
[1732645542963,20.46734584,226.97,226.91,4.9317816]
[1732645543266,20.46734584,226.99,226.92,20.46734584]
[1732645544062,20.46734584,226.99,226.93,4.4066]
[1732645544446,20.46734584,226.98,226.91,25.39912744]
[1732645544974,20.46734584,226.99,226.92,20.46734584]
[1732645545270,20.46734584,227.0,226.92,20.46734584]
[1732645545455,20.46734584,226.99,226.91,25.39912744]
[1732645545902,20.46734584,226.94,226.91,0.5249816]
[1732645546080,20.46734584,226.93,226.91,0.5249816]
[1732645548064,20.46734584,226.92,226.91,0.5249816]
[1732645548274,44.24422984,226.92,226.91,0.5249816]
[1732645549850,48.65102984,226.92,226.91,0.5249816]
[1732645550361,55.28152984,226.92,226.91,0.5249816]
[1732645550753,55.28152984,226.92,226.76,4.4098]
[1732645550956,20.46734584,226.79,226.72,26.55054584]
[1732645551153,20.0,226.88,226.69,4.4111]
[1732645551154,5.0,226.85,226.69,4.4111]
[1732645551347,23.776884,226.83,226.69,4.4111]
[1732645551552,20.46734584,226.76,226.69,4.4111]
[1732645551850,20.46734584,226.75,226.68,20.46734584]
[1732645552155,20.46734584,226.77,226.7,20.46734584]
[1732645552355,20.46734584,226.76,226.69,20.46734584]
[1732645553156,4.409,226.81,226.67,0.5249816]
[1732645553157,20.46734584,226.72,226.67,0.5249816]
[1732645553346,22.0618,226.81,226.67,0.5249816]
[1732645553347,44.24422984,226.68,226.67,0.5249816]
[1732645553543,60.77752984,226.68,226.67,0.5249816]
[1732645553946,60.77752984,226.68,226.54,20.46734584]
[1732645553947,23.776884,226.67,226.54,20.46734584]
[1732645554171,20.46734584,226.62,226.55,20.46734584]
[1732645554543,20.46734584,226.62,226.54,20.46734584]
[1732645554966,20.46734584,226.61,226.54,20.46734584]
[1732645555150,20.46734584,226.63,226.55,24.88134584]
[1732645555862,20.46734584,226.58,226.46,11.0394]
[1732645556057,20.46734584,226.57,226.5,20.46734584]
[1732645556262,6.60688717,226.65,226.46,10.03571609]
[1732645556457,20.46734584,226.57,226.5,20.46734584]
[1732645556671,20.46734584,226.56,226.49,20.46734584]
[1732645556851,20.46734584,226.61,226.54,20.46734584]
[1732645557260,20.46734584,226.61,226.54,24.88144584]
[1732645557474,4.412,226.66,226.54,4.4141]
[1732645557475,20.46734584,226.6,226.54,4.4141]
[1732645557782,20.46734584,226.62,226.55,20.46734584]
[1732645558385,20.46734584,226.61,226.54,24.88144584]
[1732645558760,20.46734584,226.62,226.55,20.46734584]
[1732645559081,20.46734584,226.63,226.56,20.46734584]
[1732645559259,20.46734584,226.62,226.55,20.46734584]
[1732645559463,20.46734584,226.64,226.57,20.46734584]
[1732645559961,20.46734584,226.65,226.58,20.46734584]
[1732645560175,20.46734584,226.64,226.57,20.46734584]
[1732645560373,20.46734584,226.64,226.58,20.46734584]
[1732645560579,20.46734584,226.66,226.59,20.46734584]
[1732645561163,20.46734584,226.65,226.58,20.46734584]
[1732645561383,20.46734584,226.65,226.59,4.4132]
[1732645561690,20.46734584,226.6,226.5,4.415]
[1732645561862,20.46734584,226.55,226.5,4.415]
[1732645562064,20.46734584,226.54,226.5,4.415]
[1732645562293,23.776884,226.66,226.52,20.46734584]
[1732645562488,20.9448,226.68,226.5,15.4525]
[1732645562985,16.5333,226.68,226.5,15.4525]
[1732645563161,11.0413,226.72,226.53,20.0]
[1732645563363,20.46734584,226.71,226.64,20.46734584]
[1732645563592,20.46734584,226.73,226.66,20.46734584]
[1732645563789,20.46734584,226.75,226.69,20.46734584]
[1732645564087,7.72789678,226.76,226.7,20.46734584]
[1732645564387,7.72789678,226.76,226.71,20.46734584]
[1732645564576,7.72789678,226.76,226.74,20.46734584]
[1732645564772,20.46734584,226.82,226.75,20.46734584]
[1732645565077,20.46734584,226.9,226.81,20.46734584]
[1732645565285,20.46734584,226.88,226.8,20.46734584]
[1732645565462,20.46734584,226.88,226.75,6.4647]
[1732645565463,20.46734584,226.88,226.81,20.46734584]
[1732645565993,0.72320966,226.89,226.79,20.0]
[1732645566168,0.72320966,226.89,226.88,20.46734584]
[1732645566369,0.72320966,226.89,226.81,20.12549]
[1732645566687,0.72320966,226.89,226.81,20.0]
[1732645567071,0.72320966,226.89,226.79,20.0]
[1732645567279,0.72320966,226.89,226.8,20.0]
[1732645567586,0.72320966,226.89,226.85,20.0]
[1732645567788,0.72320966,226.89,226.84,20.0]
[1732645567989,0.72320966,226.89,226.88,33.33919159]
[1732645569472,0.72320966,226.89,226.88,37.74679159]
[1732645570176,0.72320966,226.89,226.88,4.4076]
[1732645570384,33.33919159,226.89,226.86,4.4079]
[1732645570590,4.4062,226.95,226.75,11.4647]
[1732645570591,33.33919159,226.87,226.79,33.33919159]
[1732645570893,33.33919159,226.93,226.67,15.4408]
[1732645570894,33.33919159,226.8,226.67,15.4408]
[1732645571071,23.776884,226.83,226.67,15.4408]
[1732645571266,20.0,226.89,226.68,89.52174084]
[1732645571489,20.0,226.89,226.81,45.01458783]
[1732645571490,70.0,226.84,226.81,45.01458783]
[1732645571689,70.0,226.81,226.72,81.58542862]
[1732645571881,5.72005476,226.8,226.72,81.58542862]
[1732645572192,33.33919159,226.73,226.72,81.58542862]
[1732645573173,57.11607559,226.73,226.57,5.0]
[1732645573362,33.33919159,226.65,226.59,5.0]
[1732645573566,33.33919159,226.67,226.6,38.33919159]
[1732645573763,33.33919159,226.69,226.61,38.33919159]
[1732645573969,33.33919159,226.66,226.6,5.0]
[1732645574378,33.33919159,226.65,226.58,9.4133]
[1732645574791,33.33919159,226.64,226.58,5.0]
[1732645575092,4.4111,226.7,226.52,11.0361]
[1732645575093,33.33919159,226.6,226.55,5.0]
[1732645575277,33.33919159,226.63,226.58,5.0]
[1732645575484,20.0,226.68,226.58,9.4133]
[1732645575787,4.4111,226.7,226.58,10.0]
[1732645575994,4.4111,226.7,226.58,5.0]
[1732645576211,15.4388,226.7,226.53,5.0]
[1732645576495,20.0,226.66,226.51,5.0]
[1732645576682,20.0,226.66,226.52,5.0]
[1732645576888,33.33919159,226.59,226.51,38.33919159]
[1732645577069,33.33919159,226.59,226.53,5.0]
[1732645577393,33.33919159,226.59,226.52,33.33919159]
[1732645577564,33.33919159,226.6,226.52,33.33919159]
[1732645578293,33.33919159,226.62,226.55,33.33919159]
[1732645578587,33.33919159,226.63,226.56,33.33919159]
[1732645578885,33.33919159,226.58,226.51,5.0]
[1732645579088,20.0,226.62,226.52,5.0]
[1732645579785,4.412,226.65,226.56,5.0]
[1732645579995,37.75119159,226.65,226.56,5.0]
[1732645580188,33.33919159,226.61,226.53,38.33919159]
[1732645580494,33.33919159,226.6,226.53,33.33919159]
[1732645580798,33.33919159,226.6,226.54,33.33919159]
[1732645580994,33.33919159,226.6,226.53,33.33919159]
[1732645581382,33.33919159,226.61,226.54,33.33919159]
[1732645581690,37.75119159,226.65,226.58,33.33919159]
[1732645581987,4.4118,226.67,226.61,33.33919159]
[1732645582294,19.1501233,226.69,226.63,33.33919159]
[1732645582787,33.33919159,226.67,226.6,33.33919159]
[1732645582986,33.33919159,226.65,226.58,33.33919159]
[1732645583199,33.33919159,226.6,226.53,33.33919159]
[1732645583386,30.1783233,226.69,226.56,5.0]
[1732645583699,30.1783233,226.69,226.56,10.0]
[1732645583874,30.1783233,226.69,226.56,14.4138]
[1732645584268,19.1501233,226.69,226.59,5.0]
[1732645584496,4.4114,226.69,226.59,5.0]
[1732645584788,4.411,226.71,226.65,33.33919159]
[1732645584996,4.411,226.71,226.66,33.33919159]
[1732645585296,11.0245,226.77,226.68,33.33919159]
[1732645585297,33.33919159,226.75,226.68,33.33919159]
[1732645585466,33.33919159,226.74,226.67,33.33919159]
[1732645585670,33.33919159,226.74,226.68,33.33919159]
[1732645585908,37.74949159,226.75,226.68,33.33919159]
[1732645586271,33.33919159,226.74,226.67,33.33919159]
[1732645586774,37.74949159,226.75,226.68,33.33919159]
[1732645587690,33.33919159,226.74,226.66,33.33919159]
[1732645587876,33.33919159,226.72,226.65,33.33919159]
[1732645588199,33.33919159,226.72,226.65,38.33919159]
[1732645588592,4.4103,226.75,226.64,38.33919159]
[1732645588593,33.33919159,226.71,226.64,38.33919159]
[1732645588793,33.33919159,226.65,226.58,5.0]
[1732645589106,33.33919159,226.62,226.55,5.0]
[1732645589314,33.33919159,226.62,226.57,5.0]
[1732645589603,33.33919159,226.63,226.56,33.33919159]
[1732645590306,33.33919159,226.64,226.58,5.0]
[1732645590601,33.33919159,226.63,226.56,33.33919159]
[1732645590796,33.33919159,226.62,226.54,33.33919159]
[1732645590992,33.33919159,226.62,226.54,38.33919159]
[1732645591301,33.33919159,226.62,226.56,5.0]
[1732645591701,33.33919159,226.63,226.56,38.33919159]
[1732645592277,33.33919159,226.65,226.58,33.33919159]
[1732645592580,33.33919159,226.64,226.57,33.33919159]
[1732645594099,37.75009159,226.71,226.63,33.33919159]
[1732645594405,33.33919159,226.68,226.61,5.0]
[1732645594590,33.33919159,226.67,226.6,33.33919159]
[1732645594792,15.4382,226.71,226.57,5.0]
[1732645595000,33.33919159,226.66,226.59,38.33919159]
[1732645595204,33.33919159,226.67,226.6,33.33919159]
[1732645595388,33.33919159,226.66,226.59,33.33919159]
[1732645595585,33.33919159,226.66,226.6,5.0]
[1732645595812,33.33919159,226.7,226.63,33.33919159]
[1732645596117,4.4113,226.69,226.63,33.33919159]